[Event "Najdorf Memorial-A 2022"]
[Site "Warsaw"]
[Date "2022.07.12"]
[Round "4.14"]
[White "Dalkowski, Rafal"]
[Black "Polak, Michal"]
[Result "1-0"]
[ECO "E15"]
[WhiteElo "2120"]
[BlackElo "1944"]
[Annotator "ChessBase"]
[PlyCount "149"]
[EventDate "2022.07.09"]
[EventType "swiss"]
[EventCountry "POL"]
[SourceTitle "playchess.com"]
[Source "ChessBase"]
[SourceQuality "1"]
[TimeControl "40/5400+30:1800+30"]

1. d4 {[%emt 0:00:01]} Nf6 {[%emt 0:04:05]} 2. c4 {[%emt 0:00:05]} e6 {[%emt 0:00:40]} 3. Nf3 {[%emt 0:00:05]} b6 {[%emt 0:00:23]} 4. g3 {[%emt 0:00:05]} Ba6 {[%emt 0:00:12]} 5. Qc2 {[%emt 0:00:32]} Bb4+ {[%emt 0:00:13]} 6. Bd2 {[%emt 0:00:58]} Be7 {[%emt 0:00:08]} 7. Bg2 {[%emt 0:00:22]} c6 {[%emt 0:00:49]} 8. O-O {[%emt 0:01:56]} d5 {[%emt 0:00:41]} 9. b3 {[%emt 0:02:30]} O-O {[%emt 0:00:31]} 10. Rd1 {[%emt 0:00:40]} Nbd7 {[%emt 0:01:50]} 11. a4 {[%emt 0:02:39]} Qc8 {[%emt 0:17:37]} 12. Na3 {[%emt 0:03:04]} c5 {[%emt 0:04:45]} 13. Nb5 {[%emt 0:03:02]} cxd4 {[%emt 0:15:59]} 14. Nfxd4 {[%emt 0:01:24]} Bb7 {[%emt 0:04:28]} 15. Bf4 {[%emt 0:07:00]} a6 {[%emt 0:09:04]} 16. Nd6 {[%emt 0:06:17]} Bxd6 {[%emt 0:00:20]} 17. Bxd6 {[%emt 0:00:07]} Re8 {[%emt 0:00:27]} 18. Rac1 {[%emt 0:01:05]} dxc4 {[%emt 0:02:19]} 19. Qxc4 {[%emt 0:02:59]} Bxg2 {[%emt 0:03:45]} 20. Kxg2 {[%emt 0:00:43]} Ne4 {[%emt 0:08:23]} 21. Qd3 {[%emt 0:19:59]} Qb7 {[%emt 0:03:18]} 22. Rc7 {[%emt 0:04:29]} Qd5 {[%emt 0:01:19]} 23. Rxd7 {[%emt 0:09:31]} Nxd6+ {[%emt 0:01:59]} 24. Nf3 {[%emt 0:01:15]} Qxd3 {[%emt 0:00:26]} 25. Rxd3 {[%emt 0:00:49]} Ne4 {[%emt 0:00:14]} 26. Rc7 {[%emt 0:02:15]} Nc5 {[%emt 0:11:14]} 27. Rd6 {[%emt 0:01:38]} Nxb3 {[%emt 0:01:47]} 28. Rxb6 {[%emt 0:00:41]} Reb8 {[%emt 0:00:39]} 29. Rd6 {[%emt 0:01:08]} Rd8 {[%emt 0:01:27]} 30. Rb6 {[%emt 0:01:22]} Rdb8 {[%emt 0:00:16]} 31. Ra7 {[%emt 0:02:50]} Nc5 {[%emt 0:01:10]} 32. a5 {[%emt 0:00:26]} Rc8 {[%emt 0:01:30]} 33. Rc6 {[%emt 0:03:16]} Rab8 {[%emt 0:01:53]} 34. Ne5 {[%emt 0:01:58]} f6 {[%emt 0:00:51]} 35. Rxc5 {[%emt 0:03:02]} Rxc5 {[%emt 0:00:42]} 36. Nd7 {[%emt 0:00:08]} Rbb5 {[%emt 0:00:52]} 37. Nxc5 {[%emt 0:00:30]} Rxc5 {[%emt 0:00:02]} 38. Rxa6 {[%emt 0:00:05]} Kf7 {[%emt 0:00:13]} 39. h4 {[%emt 0:01:04]} h5 {[%emt 0:00:33]} 40. Kf3 {[%emt 0:00:00]} Rc2 {[%emt 0:00:00]} 41. Rb6 {[%emt 0:06:25]} Rc5 {[%emt 0:02:18]} 42. a6 {[%emt 0:00:17]} Ra5 {[%emt 0:01:58]} 43. Rb7+ {[%emt 0:00:25]} Kg6 {[%emt 0:01:20]} 44. a7 {[%emt 0:00:10]} Kh6 {[%emt 0:04:15]} 45. Ke3 {[%emt 0:04:10]} g5 {[%emt 0:00:26]} 46. Kd3 {[%emt 0:01:19]} Kg6 {[%emt 0:02:04]} 47. Kc4 {[%emt 0:01:49]} Ra2 {[%emt 0:02:38]} 48. e4 {[%emt 0:03:11]} f5 {[%emt 0:00:36]} 49. exf5+ {[%emt 0:03:08]} Kxf5 {[%emt 0:00:16]} 50. hxg5 {[%emt 0:00:39]} Kxg5 {[%emt 0:00:11]} 51. Kc5 {[%emt 0:01:04]} h4 {[%emt 0:00:46]} 52. gxh4+ {[%emt 0:00:22]} Kxh4 {[%emt 0:00:08]} 53. Rg7 {[%emt 0:00:24]} e5 {[%emt 0:05:34]} 54. Kb6 {[%emt 0:00:57]} e4 {[%emt 0:00:49]} 55. Kb7 {[%emt 0:00:27]} Rb2+ {[%emt 0:00:30]} 56. Kc7 {[%emt 0:00:34]} Ra2 {[%emt 0:00:35]} 57. Kb8 {[%emt 0:01:23]} Rb2+ {[%emt 0:00:19]} 58. Kc7 {[%emt 0:02:06]} Ra2 {[%emt 0:00:13]} 59. Kb6 {[%emt 0:02:16]} Rb2+ {[%emt 0:01:19]} 60. Kc5 {[%emt 0:01:35]} Ra2 {[%emt 0:00:15]} 61. Kd5 {[%emt 0:01:02]} Ra4 {[%emt 0:00:28]} 62. Kc6 {[%emt 0:06:15]} Ra2 {[%emt 0:02:26]} 63. Re7 {[%emt 0:01:00]} Kh3 {[%emt 0:09:09]} 64. Kb7 {[%emt 0:04:39]} Rb2+ {[%emt 0:00:13]} 65. Ka8 {[%emt 0:00:09]} Re2 {[%emt 0:02:13]} 66. Re6 {[%emt 0:00:30]} Kg2 {[%emt 0:04:11]} 67. Kb7 {[%emt 0:00:16]} Rb2+ {[%emt 0:00:27]} 68. Rb6 {[%emt 0:00:23]} Ra2 {[%emt 0:00:46]} 69. Ra6 {[%emt 0:00:10]} Rb2+ {[%emt 0:00:12]} 70. Kc6 {[%emt 0:00:33]} Kxf2 {[%emt 0:01:14]} 71. a8=Q {[%emt 0:00:15]} e3 {[%emt 0:00:21]} 72. Ra2 {[%emt 0:01:15]} Rxa2 {[%emt 0:00:13]} 73. Qxa2+ {[%emt 0:00:04]} e2 {[%emt 0:00:06]} 74. Qf7+ {[%emt 0:00:12]} Kg1 {[%emt 0:00:10]} 75. Qg6+ {[%emt 0:00:07]} 1-0

[Event "Najdorf Memorial-A 2022"]
[Site "Warsaw"]
[Date "2022.07.12"]
[Round "4.14"]
[White "Staniak, Mariusz"]
[Black "Podgorski, Maciej"]
[Result "*"]
[ECO "A01"]
[WhiteElo "1777"]
[BlackElo "1967"]
[Annotator "ChessBase"]
[PlyCount "64"]
[EventDate "2022.07.09"]
[EventType "swiss"]
[EventCountry "POL"]
[SourceTitle "playchess.com"]
[Source "ChessBase"]
[SourceQuality "1"]
[TimeControl "40/5400+30:1800+30"]

1. b3 {[%emt 0:00:04]} e5 {[%emt 0:02:40]} 2. Bb2 {[%emt 0:00:05]} Nc6 {[%emt 0:00:11]} 3. e3 {[%emt 0:00:06]} Nf6 {[%emt 0:00:11]} 4. Bb5 {[%emt 0:00:09]} Qe7 {[%emt 0:00:29]} 5. Bxc6 {[%emt 0:07:22]} dxc6 {[%emt 0:00:04]} 6. Ne2 {[%emt 0:01:27]} Bf5 {[%emt 0:01:14]} 7. O-O {[%emt 0:00:51]} O-O-O {[%emt 0:03:53]} 8. Qc1 {[%emt 0:04:38]} h5 {[%emt 0:01:01]} 9. d4 {[%emt 0:01:29]} e4 {[%emt 0:00:18]} 10. c4 {[%emt 0:02:45]} h4 {[%emt 0:00:19]} 11. Nbc3 {[%emt 0:03:08]} h3 {[%emt 0:01:47]} 12. g3 {[%emt 0:00:25]} Bg4 {[%emt 0:00:55]} 13. b4 {[%emt 0:07:46]} Qe6 {[%emt 0:00:44]} 14. d5 {[%emt 0:01:31]} Qf5 {[%emt 0:01:30]} 15. Nd4 {[%emt 0:01:20]} Qh5 {[%emt 0:02:49]} 16. dxc6 {[%emt 0:12:47]} bxc6 {[%emt 0:00:40]} 17. Qc2 {[%emt 0:02:24]} Be6 {[%emt 0:02:32]} 18. Nxe6 {[%emt 0:08:16]} fxe6 {[%emt 0:00:13]} 19. Qe2 {[%emt 0:02:54]} Rd2 {[%emt 0:06:39]} 20. Qxh5 {[%emt 0:02:11]} Rxh5 {[%emt 0:00:04]} 21. Rab1 {[%emt 0:09:30]} Bxb4 {[%emt 0:00:32]} 22. Na4 {[%emt 0:01:51]} Bd6 {[%emt 0:01:36]} 23. Nc3 {[%emt 0:01:48]} Rc5 {[%emt 0:01:30]} 24. Rfd1 {[%emt 0:05:19]} Rxd1+ {[%emt 0:00:28]} 25. Rxd1 {[%emt 0:00:45]} Rxc4 {[%emt 0:00:09]} 26. Rd4 {[%emt 0:03:45]} Rc5 {[%emt 0:02:36]} 27. Rd1 {[%emt 0:03:31]} Be5 {[%emt 0:04:33]} 28. Na4 {[%emt 0:00:07]} Ra5 {[%emt 0:00:31]} 29. Bxe5 {[%emt 0:00:13]} Rxe5 {[%emt 0:00:22]} 30. Nc3 {[%emt 0:00:21]} Rc5 {[%emt 0:00:13]} 31. Ne2 {[%emt 0:00:32]} e5 {[%emt 0:00:21]} 32. Nc1 {[%emt 0:00:24]} Rc2 {[%emt 0:00:23]} *

[Event "Najdorf Memorial-A 2022"]
[Site "Warsaw"]
[Date "2022.07.12"]
[Round "4.15"]
[White "Kazmierowski, Tymon"]
[Black "Spicak, Krzysztof"]
[Result "1-0"]
[ECO "A40"]
[WhiteElo "1961"]
[BlackElo "1858"]
[Annotator "ChessBase"]
[PlyCount "61"]
[EventDate "2022.07.09"]
[EventType "swiss"]
[EventCountry "POL"]
[SourceTitle "playchess.com"]
[Source "ChessBase"]
[SourceQuality "1"]
[TimeControl "40/5400+30:1800+30"]

1. d4 {[%emt 0:00:03]} e6 {[%emt 0:00:22]} 2. c4 {[%emt 0:00:08]} f5 {[%emt 0:00:10]} 3. Nf3 {[%emt 0:00:12]} Nf6 {[%emt 0:00:20]} 4. g3 {[%emt 0:00:08]} b6 {[%emt 0:00:48]} 5. Bg2 {[%emt 0:00:17]} Bb7 {[%emt 0:00:07]} 6. O-O {[%emt 0:00:28]} Be7 {[%emt 0:00:19]} 7. Nc3 {[%emt 0:00:48]} O-O {[%emt 0:00:10]} 8. b3 {[%emt 0:01:03]} d6 {[%emt 0:00:39]} 9. d5 {[%emt 0:09:23]} e5 {[%emt 0:04:09]} 10. Ng5 {[%emt 0:02:10]} Qd7 {[%emt 0:00:19]} 11. Ne6 {[%emt 0:01:56]} Rf7 {[%emt 0:00:26]} 12. e4 {[%emt 0:01:32]} fxe4 {[%emt 0:00:40]} 13. Nxe4 {[%emt 0:00:51]} Bf8 {[%emt 0:09:08]} 14. Bb2 {[%emt 0:22:57]} Na6 {[%emt 0:03:10]} 15. N4g5 {[%emt 0:08:51]} Re7 {[%emt 0:00:50]} 16. f4 {[%emt 0:01:34]} e4 {[%emt 0:07:51]} 17. Bxf6 {[%emt 0:09:09]} gxf6 {[%emt 0:00:17]} 18. Nxe4 {[%emt 0:00:11]} Bg7 {[%emt 0:00:21]} 19. Qg4 {[%emt 0:02:52]} Kh8 {[%emt 0:01:02]} 20. Qf5 {[%emt 0:02:27]} Rf7 {[%emt 0:00:44]} 21. Bh3 {[%emt 0:01:21]} Re8 {[%emt 0:11:38]} 22. Rae1 {[%emt 0:01:29]} Bc8 {[%emt 0:02:51]} 23. Qh5 {[%emt 0:02:31]} Qe7 {[%emt 0:05:34]} 24. Bf5 {[%emt 0:03:40]} Bf8 {[%emt 0:00:34]} 25. Bg6 {[%emt 0:00:23]} Kg8 {[%emt 0:01:42]} 26. Bxf7+ {[%emt 0:00:27]} Qxf7 {[%emt 0:00:18]} 27. Nxf6+ {[%emt 0:00:04]} Qxf6 28. Qxe8 Bxe6 {[%emt 0:01:32]} 29. Qxe6+ {[%emt 0:00:14]} Qxe6 {[%emt 0:00:06]} 30. dxe6 {[%emt 0:00:08]} Be7 {[%emt 0:00:16]} 31. f5 {[%emt 0:00:04]} 1-0

[Event "Najdorf Memorial-A 2022"]
[Site "Warsaw"]
[Date "2022.07.12"]
[Round "4.15"]
[White "Bojczewski, Mateusz"]
[Black "Praczukowski, Stanislaw"]
[Result "0-1"]
[ECO "A20"]
[WhiteElo "1735"]
[BlackElo "2055"]
[Annotator "ChessBase"]
[PlyCount "56"]
[EventDate "2022.07.09"]
[EventType "swiss"]
[EventCountry "POL"]
[SourceTitle "playchess.com"]
[Source "ChessBase"]
[SourceQuality "1"]
[TimeControl "40/5400+30:1800+30"]

1. c4 {[%emt 0:00:03]} e5 {[%emt 0:01:16]} 2. g3 {[%emt 0:00:12]} Nf6 {[%emt 0:00:16]} 3. Bg2 {[%emt 0:00:14]} d5 {[%emt 0:00:19]} 4. cxd5 {[%emt 0:01:08]} Nxd5 {[%emt 0:00:33]} 5. Nc3 {[%emt 0:00:16]} Nb6 {[%emt 0:00:09]} 6. d3 {[%emt 0:03:50]} Be7 {[%emt 0:00:43]} 7. Nf3 {[%emt 0:02:13]} Nc6 {[%emt 0:00:15]} 8. b3 {[%emt 0:00:56]} O-O {[%emt 0:00:51]} 9. Bb2 {[%emt 0:00:49]} Re8 {[%emt 0:01:36]} 10. O-O {[%emt 0:00:41]} Bf8 {[%emt 0:02:07]} 11. a3 {[%emt 0:04:40]} Nd4 {[%emt 0:03:52]} 12. Nxd4 {[%emt 0:01:09]} exd4 {[%emt 0:00:15]} 13. Ne4 {[%emt 0:01:55]} a5 {[%emt 0:09:25]} 14. Nd2 {[%emt 0:05:18]} c6 {[%emt 0:15:25]} 15. Nc4 {[%emt 0:05:20]} Bg4 {[%emt 0:12:39]} 16. Re1 {[%emt 0:05:56]} Nxc4 {[%emt 0:08:40]} 17. dxc4 {[%emt 0:03:53]} Bc5 {[%emt 0:04:51]} 18. Qd3 {[%emt 0:12:26]} Qd6 {[%emt 0:04:48]} 19. Bf3 {[%emt 0:09:16]} Bxf3 {[%emt 0:01:50]} 20. Qxf3 {[%emt 0:00:26]} Rad8 {[%emt 0:01:37]} 21. a4 {[%emt 0:05:52]} Qe7 {[%emt 0:04:20]} 22. Rad1 {[%emt 0:06:25]} Rd6 {[%emt 0:07:36]} 23. Qg4 {[%emt 0:05:28]} Rg6 {[%emt 0:03:31]} 24. Qh5 {[%emt 0:00:38]} Bb4 {[%emt 0:02:33]} 25. Rf1 {[%emt 0:01:44]} c5 {[%emt 0:00:19]} 26. Rfe1 {[%emt 0:04:18]} Bxe1 {[%emt 0:03:00]} 27. Rxe1 {[%emt 0:00:06]} Re6 {[%emt 0:02:25]} 28. Kf1 {[%emt 0:00:42]} Rh6 {[%emt 0:01:16]} 0-1

[Event "Najdorf Memorial-A 2022"]
[Site "Warsaw"]
[Date "2022.07.12"]
[Round "4.16"]
[White "Shilov, Sergej"]
[Black "Rozumek, Krzysztof"]
[Result "1/2-1/2"]
[ECO "B10"]
[WhiteElo "2048"]
[BlackElo "1801"]
[Annotator "ChessBase"]
[PlyCount "93"]
[EventDate "2022.07.09"]
[EventType "swiss"]
[EventCountry "POL"]
[SourceTitle "playchess.com"]
[Source "ChessBase"]
[SourceQuality "1"]
[TimeControl "40/5400+30:1800+30"]

1. e4 {[%emt 0:00:05]} c6 {[%emt 0:00:01]} 2. Nc3 {[%emt 0:00:43]} d5 {[%emt 0:00:07]} 3. Nf3 {[%emt 0:00:05]} Nf6 {[%emt 0:00:13]} 4. e5 {[%emt 0:00:37]} Ne4 {[%emt 0:00:02]} 5. d3 {[%emt 0:00:47]} Nxc3 {[%emt 0:00:49]} 6. bxc3 {[%emt 0:00:02]} e6 {[%emt 0:00:13]} 7. d4 {[%emt 0:02:36]} c5 {[%emt 0:00:40]} 8. dxc5 {[%emt 0:01:26]} Bxc5 {[%emt 0:01:29]} 9. Bd3 {[%emt 0:00:09]} Nc6 {[%emt 0:02:11]} 10. O-O {[%emt 0:04:21]} h6 {[%emt 0:00:51]} 11. Qe2 {[%emt 0:01:34]} Qc7 {[%emt 0:03:24]} 12. Be3 {[%emt 0:03:47]} b6 {[%emt 0:02:55]} 13. Nd4 {[%emt 0:09:49]} Bxd4 {[%emt 0:00:41]} 14. Bxd4 {[%emt 0:00:20]} Nxd4 {[%emt 0:01:06]} 15. cxd4 {[%emt 0:00:03]} Qc3 {[%emt 0:00:14]} 16. Qe3 {[%emt 0:06:38]} Bd7 {[%emt 0:01:02]} 17. Qg3 {[%emt 0:04:09]} g6 {[%emt 0:02:10]} 18. Qf4 {[%emt 0:00:24]} Rc8 {[%emt 0:03:57]} 19. a4 {[%emt 0:02:47]} Rf8 {[%emt 0:14:30]} 20. Qxh6 {[%emt 0:09:17]} Qxd4 {[%emt 0:02:29]} 21. Qg5 {[%emt 0:00:22]} Rh8 {[%emt 0:01:25]} 22. Qf6 {[%emt 0:03:26]} Qh4 {[%emt 0:00:33]} 23. Qxh4 {[%emt 0:00:13]} Rxh4 {[%emt 0:00:14]} 24. f4 {[%emt 0:00:02]} Rc5 {[%emt 0:00:34]} 25. g3 {[%emt 0:01:39]} Rh8 {[%emt 0:00:15]} 26. Rfb1 {[%emt 0:02:39]} Ke7 {[%emt 0:01:13]} 27. a5 {[%emt 0:02:49]} b5 {[%emt 0:00:53]} 28. a6 {[%emt 0:00:21]} Rb8 {[%emt 0:00:26]} 29. Kf2 {[%emt 0:02:18]} Rb6 {[%emt 0:00:56]} 30. Ke3 {[%emt 0:02:27]} Rc8 {[%emt 0:01:10]} 31. h4 {[%emt 0:00:35]} Rc7 {[%emt 0:01:46]} 32. Kd4 {[%emt 0:02:19]} Bc8 {[%emt 0:05:31]} 33. Rxb5 {[%emt 0:04:25]} Rxb5 {[%emt 0:00:42]} 34. Bxb5 {[%emt 0:00:06]} Rxc2 {[%emt 0:00:03]} 35. Ra3 {[%emt 0:00:22]} Rb2 {[%emt 0:05:23]} 36. Bd3 {[%emt 0:00:55]} Rb6 {[%emt 0:01:49]} 37. Kc5 {[%emt 0:02:26]} Bd7 {[%emt 0:01:06]} 38. g4 {[%emt 0:01:51]} Kf8 {[%emt 0:03:53]} 39. Ra1 {[%emt 0:04:02]} Bc8 {[%emt 0:01:50]} 40. Ra4 {[%emt 0:00:00]} Kg7 {[%emt 0:00:00]} 41. Bb5 {[%emt 0:06:12]} Rxb5+ {[%emt 0:04:54]} 42. Kxb5 {[%emt 0:00:02]} Bd7+ {[%emt 0:00:09]} 43. Kb4 {[%emt 0:00:02]} Bxa4 {[%emt 0:00:13]} 44. Kxa4 {[%emt 0:00:01]} Kh6 {[%emt 0:00:24]} 45. Kb5 {[%emt 0:00:36]} Kg7 {[%emt 0:00:11]} 46. Kc5 {[%emt 0:00:53]} Kh6 {[%emt 0:00:42]} 47. Kd4 {[%emt 0:00:17]} 1/2-1/2

[Event "Najdorf Memorial-A 2022"]
[Site "Warsaw"]
[Date "2022.07.12"]
[Round "4.16"]
[White "Basiaga, Sebastian"]
[Black "Kutowski, Marcel"]
[Result "0-1"]
[ECO "B52"]
[WhiteElo "1770"]
[BlackElo "1961"]
[Annotator "ChessBase"]
[PlyCount "82"]
[EventDate "2022.07.09"]
[EventType "swiss"]
[EventCountry "POL"]
[SourceTitle "playchess.com"]
[Source "ChessBase"]
[SourceQuality "1"]
[TimeControl "40/5400+30:1800+30"]

1. e4 {[%emt 0:00:04]} c5 {[%emt 0:00:04]} 2. Nf3 {[%emt 0:00:06]} d6 {[%emt 0:00:02]} 3. Bb5+ {[%emt 0:00:22]} Bd7 {[%emt 0:00:25]} 4. Bxd7+ {[%emt 0:00:08]} Qxd7 {[%emt 0:00:28]} 5. c4 {[%emt 0:00:07]} Nf6 {[%emt 0:00:12]} 6. Nc3 {[%emt 0:00:08]} g6 {[%emt 0:00:05]} 7. d4 {[%emt 0:00:08]} cxd4 {[%emt 0:00:06]} 8. Nxd4 {[%emt 0:00:05]} Bg7 {[%emt 0:00:28]} 9. f3 {[%emt 0:00:18]} Qc7 {[%emt 0:00:28]} 10. b3 {[%emt 0:10:53]} Qa5 {[%emt 0:00:30]} 11. Qd3 {[%emt 0:09:16]} Nc6 {[%emt 0:04:04]} 12. Be3 {[%emt 0:06:36]} O-O {[%emt 0:01:39]} 13. O-O {[%emt 0:00:42]} Rfd8 {[%emt 0:00:42]} 14. Rfd1 {[%emt 0:01:45]} e6 {[%emt 0:08:24]} 15. Nxc6 {[%emt 0:13:03]} bxc6 {[%emt 0:00:11]} 16. Rac1 {[%emt 0:00:23]} d5 {[%emt 0:10:20]} 17. cxd5 {[%emt 0:00:36]} cxd5 {[%emt 0:11:53]} 18. exd5 {[%emt 0:02:54]} Nxd5 {[%emt 0:01:14]} 19. Nxd5 {[%emt 0:00:21]} Rxd5 {[%emt 0:00:08]} 20. Qc2 {[%emt 0:03:50]} Rad8 {[%emt 0:08:02]} 21. Rxd5 {[%emt 0:10:49]} Rxd5 {[%emt 0:01:09]} 22. Qc8+ {[%emt 0:07:43]} Rd8 {[%emt 0:01:52]} 23. Qc2 {[%emt 0:01:04]} h5 {[%emt 0:07:27]} 24. Qf2 {[%emt 0:02:01]} Rd3 {[%emt 0:06:22]} 25. Qe2 {[%emt 0:07:27]} Qd5 {[%emt 0:02:14]} 26. Kh1 {[%emt 0:02:23]} a6 {[%emt 0:02:14]} 27. g3 {[%emt 0:05:28]} Bf6 {[%emt 0:07:09]} 28. Rc2 {[%emt 0:00:37]} Bc3 {[%emt 0:03:48]} 29. Kg2 {[%emt 0:00:59]} h4 {[%emt 0:10:29]} 30. g4 {[%emt 0:09:12]} e5 31. Bh6 h3+ {[%emt 0:01:47]} 32. Kf2 {[%emt 0:03:24]} Bd4+ {[%emt 0:02:38]} 33. Kg3 {[%emt 0:00:09]} e4 {[%emt 0:00:54]} 34. Kh4 {[%emt 0:01:11]} Rxf3 {[%emt 0:01:24]} 35. Qxa6 {[%emt 0:01:41]} Bf6+ {[%emt 0:04:00]} 36. g5 {[%emt 0:00:02]} Bd8 {[%emt 0:02:03]} 37. Qc8 {[%emt 0:01:39]} Qd6 {[%emt 0:02:15]} 38. Qg4 {[%emt 0:01:23]} Rf4 {[%emt 0:00:17]} 39. a4 {[%emt 0:00:29]} Rxg4+ {[%emt 0:00:12]} 40. Kxg4 {[%emt 0:00:00]} Qe6+ {[%emt 0:00:00]} 41. Kh4 {[%emt 0:00:13]} e3 {[%emt 0:00:37]} 0-1

[Event "Najdorf Memorial-A 2022"]
[Site "Warsaw"]
[Date "2022.07.12"]
[Round "4.17"]
[White "Pancewicz, Szymon"]
[Black "Vanduyfhuys, Igor"]
[Result "1-0"]
[ECO "B90"]
[WhiteElo "1756"]
[BlackElo "1959"]
[Annotator "ChessBase"]
[PlyCount "51"]
[EventDate "2022.07.09"]
[EventType "swiss"]
[EventCountry "POL"]
[SourceTitle "playchess.com"]
[Source "ChessBase"]
[SourceQuality "1"]
[TimeControl "40/5400+30:1800+30"]

1. e4 {[%emt 0:00:04]} c5 {[%emt 0:00:04]} 2. Nf3 {[%emt 0:00:46]} d6 {[%emt 0:00:02]} 3. d4 {[%emt 0:00:22]} cxd4 {[%emt 0:00:02]} 4. Nxd4 {[%emt 0:00:07]} Nf6 {[%emt 0:00:03]} 5. Nc3 {[%emt 0:00:18]} a6 {[%emt 0:00:03]} 6. h3 {[%emt 0:00:57]} g6 {[%emt 0:00:05]} 7. Be3 {[%emt 0:03:31]} Bg7 {[%emt 0:00:07]} 8. g4 {[%emt 0:02:33]} O-O {[%emt 0:00:50]} 9. Qd2 {[%emt 0:02:20]} b5 {[%emt 0:00:39]} 10. Bg2 {[%emt 0:04:44]} Bb7 {[%emt 0:01:43]} 11. O-O {[%emt 0:05:13]} Qc8 {[%emt 0:19:57]} 12. Nd5 {[%emt 0:10:27]} Nxd5 {[%emt 0:01:03]} 13. exd5 {[%emt 0:00:14]} Nd7 {[%emt 0:00:16]} 14. Rfe1 {[%emt 0:09:22]} Ne5 {[%emt 0:03:53]} 15. b3 {[%emt 0:01:55]} Nd7 {[%emt 0:04:08]} 16. Rac1 {[%emt 0:04:01]} Nb6 {[%emt 0:02:50]} 17. Nc6 {[%emt 0:06:24]} Bxc6 {[%emt 0:00:07]} 18. dxc6 {[%emt 0:02:36]} Qc7 {[%emt 0:01:32]} 19. Bxb6 {[%emt 0:02:02]} Qxb6 {[%emt 0:00:05]} 20. Rxe7 {[%emt 0:00:58]} Be5 {[%emt 0:00:52]} 21. c4 {[%emt 0:03:31]} Ra7 {[%emt 0:00:58]} 22. c5 {[%emt 0:03:06]} Qb8 {[%emt 0:01:43]} 23. Rxa7 {[%emt 0:01:42]} Qxa7 {[%emt 0:00:04]} 24. cxd6 {[%emt 0:00:24]} b4 {[%emt 0:08:11]} 25. c7 {[%emt 0:06:26]} Bc3 {[%emt 0:00:03]} 26. Rxc3 {[%emt 0:00:45]} 1-0

[Event "Najdorf Memorial-A 2022"]
[Site "Warsaw"]
[Date "2022.07.12"]
[Round "4.17"]
[White "Niezhentsev, Kyrylo"]
[Black "Backiel, Hubert"]
[Result "0-1"]
[ECO "B24"]
[WhiteElo "1721"]
[BlackElo "2045"]
[Annotator "ChessBase"]
[PlyCount "78"]
[EventDate "2022.07.09"]
[EventType "swiss"]
[EventCountry "POL"]
[SourceTitle "playchess.com"]
[Source "ChessBase"]
[SourceQuality "1"]
[TimeControl "40/5400+30:1800+30"]

1. e4 {[%emt 0:00:05]} c5 {[%emt 0:00:06]} 2. Nc3 {[%emt 0:00:07]} Nc6 {[%emt 0:00:55]} 3. Nf3 {[%emt 0:00:16]} Nf6 {[%emt 0:00:20]} 4. Bb5 {[%emt 0:00:26]} e6 {[%emt 0:01:34]} 5. d4 {[%emt 0:03:16]} cxd4 {[%emt 0:00:21]} 6. Nxd4 {[%emt 0:00:11]} Bb4 {[%emt 0:02:27]} 7. Nxc6 {[%emt 0:03:32]} bxc6 {[%emt 0:07:55]} 8. Bd3 {[%emt 0:00:03]} d5 {[%emt 0:15:07]} 9. Bd2 {[%emt 0:11:07]} O-O {[%emt 0:06:37]} 10. O-O {[%emt 0:14:58]} a5 {[%emt 0:19:04]} 11. Qe2 {[%emt 0:16:57]} c5 {[%emt 0:06:06]} 12. e5 {[%emt 0:08:47]} c4 {[%emt 0:03:56]} 13. Bxc4 {[%emt 0:03:45]} dxc4 {[%emt 0:00:06]} 14. exf6 {[%emt 0:00:15]} Qxf6 {[%emt 0:00:17]} 15. Qe4 {[%emt 0:04:44]} Ra7 {[%emt 0:10:32]} 16. a3 {[%emt 0:04:05]} Be7 {[%emt 0:08:02]} 17. Qg4 {[%emt 0:06:02]} Rd7 {[%emt 0:01:39]} 18. Be3 {[%emt 0:00:52]} Bb7 {[%emt 0:02:08]} 19. Qxc4 {[%emt 0:02:04]} Qg6 {[%emt 0:01:04]} 20. f3 {[%emt 0:00:59]} Qxc2 {[%emt 0:01:04]} 21. Rfc1 {[%emt 0:02:31]} Qxb2 {[%emt 0:04:05]} 22. Qa4 {[%emt 0:10:19]} Bc8 {[%emt 0:00:52]} 23. Ra2 {[%emt 0:00:30]} Qb8 {[%emt 0:00:54]} 24. Qxa5 {[%emt 0:01:41]} Bd6 {[%emt 0:01:12]} 25. h3 {[%emt 0:01:20]} Bf4 {[%emt 0:01:30]} 26. Bxf4 {[%emt 0:00:46]} Qxf4 {[%emt 0:00:01]} 27. Ne2 {[%emt 0:00:16]} Qe3+ {[%emt 0:01:52]} 28. Kh1 {[%emt 0:01:46]} h6 {[%emt 0:00:10]} 29. Qb5 {[%emt 0:02:08]} Rd5 {[%emt 0:00:31]} 30. Qc4 {[%emt 0:00:27]} Rfd8 {[%emt 0:01:03]} 31. Rac2 {[%emt 0:01:11]} Bb7 {[%emt 0:01:13]} 32. Rc3 {[%emt 0:00:28]} Qf2 {[%emt 0:01:11]} 33. R1c2 {[%emt 0:00:33]} Rg5 {[%emt 0:01:29]} 34. Ng1 {[%emt 0:00:13]} Qe1 {[%emt 0:00:52]} 35. Qc7 {[%emt 0:00:45]} Rd1 {[%emt 0:00:15]} 36. Qb6 {[%emt 0:00:15]} Rd2 {[%emt 0:00:33]} 37. g4 {[%emt 0:00:49]} Rxc2 38. Qd8+ {[%emt 0:00:29]} Kh7 {[%emt 0:01:08]} 39. Qd3+ {[%emt 0:00:12]} Be4 {[%emt 0:00:14]} 0-1

[Event "Najdorf Memorial-A 2022"]
[Site "Warsaw"]
[Date "2022.07.12"]
[Round "4.18"]
[White "Mazur, Maciej"]
[Black "Iwanczuk, Krzysztof"]
[Result "0-1"]
[ECO "B51"]
[WhiteElo "1757"]
[BlackElo "1947"]
[Annotator "ChessBase"]
[PlyCount "65"]
[EventDate "2022.07.09"]
[EventType "swiss"]
[EventCountry "POL"]
[SourceTitle "playchess.com"]
[Source "ChessBase"]
[SourceQuality "1"]
[TimeControl "40/5400+30:1800+30"]

1. e4 {[%emt 0:00:02]} c5 {[%emt 0:00:13]} 2. Nf3 {[%emt 0:00:07]} d6 {[%emt 0:00:06]} 3. Bb5+ {[%emt 0:00:08]} Nd7 {[%emt 0:01:18]} 4. c4 {[%emt 0:00:13]} Ngf6 {[%emt 0:01:38]} 5. Nc3 {[%emt 0:00:08]} g6 {[%emt 0:01:23]} 6. d4 {[%emt 0:00:11]} cxd4 {[%emt 0:00:08]} 7. Nxd4 {[%emt 0:00:03]} Bg7 {[%emt 0:00:32]} 8. O-O {[%emt 0:00:34]} O-O {[%emt 0:00:20]} 9. Bxd7 {[%emt 0:00:15]} Bxd7 {[%emt 0:00:56]} 10. Be3 {[%emt 0:04:58]} Rc8 {[%emt 0:02:59]} 11. b3 {[%emt 0:01:04]} Ng4 {[%emt 0:02:54]} 12. Qd2 {[%emt 0:11:34]} Nxe3 {[%emt 0:00:55]} 13. Qxe3 {[%emt 0:00:02]} Qa5 {[%emt 0:05:01]} 14. a4 Rfe8 {[%emt 0:04:29]} 15. h3 {[%emt 0:11:48]} a6 {[%emt 0:01:55]} 16. Rfd1 {[%emt 0:08:29]} e6 {[%emt 0:21:06]} 17. Qd2 {[%emt 0:03:44]} Bc6 {[%emt 0:02:34]} 18. Nxc6 {[%emt 0:11:51]} bxc6 {[%emt 0:04:51]} 19. Rac1 {[%emt 0:08:18]} d5 {[%emt 0:04:24]} 20. Nb1 {[%emt 0:07:13]} Qb6 {[%emt 0:06:41]} 21. cxd5 {[%emt 0:05:35]} cxd5 {[%emt 0:00:07]} 22. Rxc8 {[%emt 0:03:16]} Rxc8 {[%emt 0:00:07]} 23. exd5 {[%emt 0:00:11]} Qxb3 {[%emt 0:01:13]} 24. dxe6 {[%emt 0:01:36]} Qxe6 {[%emt 0:00:23]} 25. Qa5 {[%emt 0:11:05]} Bf8 {[%emt 0:04:25]} 26. Re1 {[%emt 0:03:40]} Qf6 {[%emt 0:00:41]} 27. Qd5 {[%emt 0:01:48]} Rc2 {[%emt 0:01:07]} 28. Nd2 {[%emt 0:02:55]} Qc3 {[%emt 0:07:02]} 29. Nf3 {[%emt 0:00:52]} Bc5 {[%emt 0:04:07]} 30. Re8+ {[%emt 0:01:59]} Kg7 {[%emt 0:00:34]} 31. Qe5+ {[%emt 0:01:39]} Qxe5 {[%emt 0:00:13]} 32. Nxe5 {[%emt 0:00:03]} Rxf2 {[%emt 0:00:36]} 33. Rc8 0-1